[Event "34th Pula Open 2022"]
[Site "Pula"]
[Date "2022.06.20"]
[Round "3.11"]
[White "Jusic, Zdenko"]
[Black "Sandor, Martin"]
[Result "1-0"]
[ECO "B22"]
[WhiteElo "2236"]
[BlackElo "2042"]
[Annotator "TA"]
[PlyCount "89"]
[EventDate "2022.06.18"]
[EventType "swiss"]
[EventCountry "CRO"]
[SourceTitle "playchess.com"]
[Source "ChessBase"]
[SourceQuality "1"]
[TimeControl "5400+30"]

{[%evp 15,89,8,41,17,114,107,109,108,108,108,112,105,105,105,105,114,117,83,97,72,124,117,126,115,105,134,138,0,45,57,52,20,102,93,210,211,227,196,322,325,343,319,360,352,458,450,472,464,1006,308,314,281,310,247,320,312,293,288,429,427,409,400,471,409,445,439,472,462,548,564,729,710,726,710,635,599]} 1. e4 {[%emt 0:01:46]} c5 {[%emt 0:00:07]} 2. c3 {[%emt 0:00:34]} Nf6 {[%emt 0:00:28]} 3. e5 {[%emt 0:00:45]} Nd5 {[%emt 0:00:11]} 4. d4 {[%emt 0:00:07]} cxd4 {[%emt 0:01:00]} 5. Nf3 {[%emt 0:00:13]} Nc6 {[%emt 0:00:34]} 6. cxd4 {[%emt 0:00:56]} d6 {[%emt 0:00:27]} 7. Bc4 {[%emt 0:07:39]} Nb6 {[%emt 0:02:13]} 8. Bb5 {[%emt 0:00:54]} d5 {[%emt 0:02:28]} 9. a4 {[%emt 0:28:33][%cal Ba2a4,Ba4a5][%mdl 32] [#] B22: Sicilian: 2 c3.} a6 $146 {[%emt 0:05:20]} (9... Nc4 $11) ({Predecessor:} 9... Bf5 10. a5 Nd7 11. a6 Qb6 12. axb7 Qxb7 13. Qa4 Rc8 14. Ba6 Qb4+ 15. Nc3 Qxa4 16. Rxa4 Rb8 {1-0 (33) Mammadov,Z (2417)-Koc,P (2346) Chess.com INT 2020}) 10. Bxc6+ $16 {[%emt 0:00:51]} bxc6 {[%emt 0:00:10]} 11. a5 $1 {[%emt 0:00:19] White is better.} Nd7 {[%emt 0:04:49]} 12. e6 $1 {[%emt 0:08:22]} fxe6 {[%emt 0:01:46]} 13. Bf4 $1 {[%emt 0:01:52]} e5 {[%emt 0:04:31]} 14. Nxe5 {[%emt 0:05:52]} ({Don't play} 14. Bxe5 Nxe5 15. Nxe5 g6 $14) 14... Nxe5 {[%emt 0:00:08]} 15. Bxe5 {[%emt 0:00:05] Hoping for Qh5+.} Bf5 {[%emt 0:02:14]} 16. Qh5+ {[%emt 0:06:26]} Bg6 {[%emt 0:02:44]} 17. Qg4 {[%emt 0:16:30]} Qc8 {[%emt 0:05:28]} (17... Qd7 $142 18. Qxd7+ Kxd7) 18. Qg3 {[%emt 0:01:21] White is more active.} Qb7 {[%emt 0:03:42]} 19. Nc3 {[%emt 0:03:23]} e6 {[%emt 0:06:12]} 20. h4 {[%emt 0:08:28]} Qf7 {[%emt 0:14:46] [#]} ({Not} 20... Qxb2 21. O-O $14) 21. Bd6 {[%emt 0:04:23] Prevents c5.} (21. O-O $1 $16) 21... Rd8 {[%emt 0:01:11]} 22. Bxf8 {[%emt 0:00:14]} Rxf8 {[%emt 0:00:11]} 23. Ne2 {[%emt 0:01:10] Against Qf4} (23. h5 $5 Bxh5 24. Na4 $14) 23... Bh5 {[%emt 0:03:53]} (23... c5 $11 {remains equal.}) 24. f3 {[%emt 0:00:04] White stays focused until the end.} Qg6 {[%emt 0:00:36] [#]} (24... Rc8 $16) 25. Qe5 $1 $18 {[%emt 0:00:43]} Rf5 {[%emt 0:07:55]} 26. Qe3 {[%emt 0:00:02]} Qf7 {[%emt 0:01:23]} (26... e5 {was necessary.}) 27. Ra3 {[%emt 0:00:21]} Rf6 {[%emt 0:07:33]} 28. g4 {[%emt 0:00:18]} Rb8 {[%emt 0:00:06][%cal Ob8b2]} 29. Qc3 {[%emt 0:01:02]} ({Don't do} 29. gxh5 Qxh5 30. Qc1 Kd7 $18) 29... Bg6 {[%emt 0:01:23]} 30. h5 {[%emt 0:00:20]} Bb1 {[%emt 0:01:11]} 31. Kd2 {[%emt 0:01:00]} Rxf3 {[%emt 0:01:04]} (31... c5 $142 32. Rxb1 c4) 32. Qxf3 $2 {[%emt 0:00:16]} (32. Qxc6+ Qd7 33. Qxd7+ Kxd7 34. Rxf3) 32... Qxf3 {[%emt 0:00:05]} 33. Rxf3 {[%emt 0:00:19]} Be4 {[%emt 0:00:03]} 34. Ke3 {[%emt 0:01:44][%cal Oh1c1] Black must now prevent Rc1!} Rxb2 {[%emt 0:00:53] ...Rb3+ is the strong threat.} 35. Rff1 {[%emt 0:00:17]} Bxh1 {[%emt 0:01:27]} 36. Rxh1 {[%emt 0:00:06][%mdl 4096] Endgame KRN-KR} Ke7 {[%emt 0:01:31]} (36... Rb3+ {was worth a try.} 37. Kd2 Kd7) 37. Rc1 {[%emt 0:00:16]} Kd6 {[%emt 0:00:34]} 38. Nf4 {[%emt 0:00:08]} Rb3+ {[%emt 0:00:49]} 39. Nd3 {[%emt 0:00:05]} Ra3 {[%emt 0:00:28]} 40. Rb1 {[%emt 0:00:18] White is clearly winning.} Kc7 {[%emt 0:02:28] Inhibits Rb7+.} 41. Kd2 {[%emt 0:00:41]} Rxa5 {[%emt 0:00:56]} 42. Nc5 {[%emt 0:00:14] Inhibits Ra4.} e5 {[%emt 0:01:05]} 43. Rb7+ {[%emt 0:00:19]} Kc8 {[%emt 0:00:02]} 44. Rxg7 {[%emt 0:00:11]} exd4 {[%emt 0:00:05]} 45. Ne6 {[%emt 0:00:20] Weighted Error Value: White=0.26 (precise) /Black=0.40} 1-0

[Event "34th Pula Open 2022"]
[Site "Pula"]
[Date "2022.06.20"]
[Round "3.12"]
[White "Starcevic, Ante Leon"]
[Black "Petrek, Dominik"]
[Result "1-0"]
[ECO "D02"]
[WhiteElo "2227"]
[BlackElo "2110"]
[Annotator "TA"]
[PlyCount "113"]
[EventDate "2022.06.18"]
[EventType "swiss"]
[EventCountry "CRO"]
[SourceTitle "playchess.com"]
[Source "ChessBase"]
[SourceQuality "1"]
[TimeControl "5400+30"]

{[%evp 10,113,3,-6,5,-5,0,0,0,0,-2,0,21,13,31,43,58,50,57,57,62,53,53,53,58,60,64,58,51,65,71,16,16,16,27,23,22,22,31,22,33,18,18,8,14,14,14,14,14,14,14,14,20,14,50,16,58,58,58,20,97,121,110,0,36,18,33,8,8,8,40,0,0,0,8,0,0,0,0,0,0,0,8,0,0,0,2,2,17,8,674,654,793,787,707,658,818,772,1121,792,29982,29983,29983,29984,29984,29982]} 1. Nf3 {[%emt 0:01:32]} e6 {[%emt 0:00:52]} 2. d4 {[%emt 0:00:21]} Nf6 {[%emt 0:00:24]} 3. Bf4 {[%emt 0:00:25]} d5 {[%emt 0:00:27]} 4. e3 {[%emt 0:00:43]} Bd6 {[%emt 0:00:26]} 5. Bg3 {[%emt 0:00:29]} O-O {[%emt 0:00:23]} 6. Nbd2 {[%emt 0:00:44]} c5 {[%emt 0:00:12] D02: 1 d4 d5 2 Nf3 sidelines, including 2...Nf6 3 g3 and 2...Nf6 3 Bf4.} 7. c3 {[%emt 0:00:08]} Qc7 {[%emt 0:03:24]} 8. dxc5 {[%emt 0:10:27]} Qxc5 {[%emt 0:02:04] The position is equal.} 9. Bd3 {[%emt 0:00:09]} Nbd7 {[%emt 0:02:49]} 10. Qe2 {[%emt 0:01:35]} e5 {[%emt 0:25:48]} 11. e4 {[%emt 0:00:14]} dxe4 {[%emt 0:01:33]} 12. Bxe4 {[%emt 0:01:12] [#]} Nxe4 $146 {[%emt 0:16:26]} ({Predecessor:} 12... Re8 13. Rd1 Bc7 14. Nb3 Qf8 15. Bf5 g6 16. Bh3 e4 17. Nfd4 Ne5 18. Bxc8 Nd3+ {½-½ (41) Anisimov,P (2527)-Steinberg,N (2542) Chess.com INT 2020}) 13. Nxe4 {[%emt 0:00:08]} Qc7 {[%emt 0:00:23]} 14. Nxd6 {[%emt 0:00:19]} Qxd6 {[%emt 0:00:19]} 15. Bxe5 {[%emt 0:00:35]} Nxe5 {[%emt 0:01:32]} 16. Qxe5 {[%emt 0:00:20]} ({Don't blunder} 16. Nxe5 $2 Re8 17. f4 f6 $19) 16... Qb6 {[%emt 0:06:30]} 17. O-O-O $1 {[%emt 0:03:26]} Be6 {[%emt 0:02:59]} 18. Qd4 {[%emt 0:09:30]} (18. Nd4 {keeps more tension.} Bxa2 19. Nf5 f6 20. Qg3) 18... Bxa2 {[%emt 0:01:36]} 19. Qxb6 {[%emt 0:22:33]} axb6 {[%emt 0:01:00]} 20. Rd6 {[%emt 0:00:28]} (20. Kc2 $16) 20... Bd5 $11 {[%emt 0:11:24] And now ...Bxf3 would win.} 21. Rd1 {[%emt 0:04:56]} Ra1+ {[%emt 0:01:33]} 22. Kd2 {[%emt 0:01:24]} Rxd1+ {[%emt 0:00:15]} 23. Kxd1 {[%emt 0:00:43][%mdl 4096] Endgame KRB-KRN} Bc6 {[%emt 0:00:05]} 24. Ne1 {[%emt 0:06:47]} Ra8 {[%emt 0:00:52]} 25. g3 {[%emt 0:01:24]} Kf8 {[%emt 0:00:06]} 26. Kd2 {[%emt 0:02:03]} Ke7 {[%emt 0:00:50]} 27. Rd4 {[%emt 0:00:09]} Rd8 {[%emt 0:01:41]} 28. Rxd8 {[%emt 0:04:12]} Kxd8 {[%emt 0:00:02] KB-KN} 29. Ke3 {[%emt 0:00:15]} Ke7 {[%emt 0:00:10]} 30. Kd4 {[%emt 0:00:16]} Kd6 {[%emt 0:00:24]} 31. Nd3 {[%emt 0:00:11]} g6 {[%emt 0:00:44]} 32. Ne5 {[%emt 0:05:11]} f6 {[%emt 0:00:33]} 33. Nc4+ {[%emt 0:00:05]} Kc7 {[%emt 0:00:09]} 34. h4 {[%emt 0:00:33]} h5 {[%emt 0:03:32]} (34... b5 $1 $11 {keeps the balance.} 35. Ne3 Kd6) 35. Ne3 $16 {[%emt 0:01:42] Black must now prevent Nd5+.} Kd6 {[%emt 0:00:57] [#] Against Nd5} 36. Nc4+ {[%emt 0:00:05]} (36. c4 $1 $16) 36... Kc7 $14 {[%emt 0:00:05]} 37. Nd2 {[%emt 0:00:38]} Kd6 {[%emt 0:00:45]} 38. Nb3 {[%emt 0:00:18]} Ke6 {[%emt 0:01:32]} 39. Ke3 {[%emt 0:00:34]} Kd5 {[%emt 0:02:41]} 40. Nd4 {[%emt 0:05:21]} Kc4 {[%emt 0:02:54]} 41. Kd2 {[%emt 0:02:34]} (41. Nxc6 bxc6 42. Kd2 Kb3 $19) 41... Bd5 {[%emt 0:02:59]} 42. b4 {[%emt 0:01:48]} Bf7 {[%emt 0:03:48]} 43. Ne2 {[%emt 0:00:27]} Kb3 {[%emt 0:00:36]} 44. Nd4+ {[%emt 0:00:17]} Kc4 {[%emt 0:00:03]} 45. Ne2 {[%emt 0:00:04]} Kb3 {[%emt 0:00:03]} 46. Nf4 {[%emt 0:00:09]} Kc4 {[%emt 0:01:16]} 47. Ng2 {[%emt 0:00:26]} Be6 {[%emt 0:00:44]} 48. Ne3+ {[%emt 0:00:16]} Kb3 {[%emt 0:00:20]} 49. Kd3 {[%emt 0:00:34] Strongly threatening b5.} Kb2 $2 {[%emt 0:00:53][%mdl 8192] [#] Loses the game.} (49... b5 $11) 50. b5 $1 $18 {[%emt 0:03:25]} Kb3 {[%emt 0:01:38]} 51. c4 {[%emt 0:00:37][%cal Bc3c4,Bc4d5][%mdl 32]} Kb4 {[%emt 0:00:44]} 52. Kd4 {[%emt 0:00:07]} Bf7 {[%emt 0:00:46]} 53. f3 {[%emt 0:02:24][%cal Bf2f3,Bf3f4][%mdl 32]} g5 54. Nd5+ {[%emt 0:00:02]} Bxd5 {[%emt 0:00:56]} 55. cxd5 {[%emt 0:00:06] White mates.} gxh4 {[%emt 0:00:48]} 56. gxh4 {[%emt 0:00:24]} Kxb5 {[%emt 0:00:08]} 57. f4 {[%emt 0:00:06] Weighted Error Value: White=0.10 (very precise) /Black=0.37} 1-0

[Event "34th Pula Open 2022"]
[Site "Pula"]
[Date "2022.06.20"]
[Round "4.1"]
[White "Fercec, Nenad"]
[Black "Jusic, Zdenko"]
[Result "1-0"]
[ECO "C06"]
[WhiteElo "2415"]
[BlackElo "2236"]
[Annotator "TA"]
[PlyCount "67"]
[EventDate "2022.06.18"]
[EventType "swiss"]
[EventCountry "CRO"]
[SourceTitle "playchess.com"]
[Source "ChessBase"]
[SourceQuality "1"]
[TimeControl "5400+30"]

{[%evp 16,67,54,64,66,61,59,55,55,55,59,58,115,118,190,114,106,116,105,134,157,156,187,167,151,164,175,169,196,208,362,370,695,491,555,526,589,578,795,781,929,925,1368,1166,5306,4866,2661,2633,2159,2475,2315,2250,29991,29992]} 1. e4 {[%emt 0:00:14][%cal Be2e4,Be4e5][%mdl 32]} e6 {[%emt 0:06:53]} 2. d4 {[%emt 0:00:08]} d5 {[%emt 0:00:04]} 3. Nd2 {[%emt 0:00:08]} Nf6 {[%emt 0:01:06]} 4. e5 {[%emt 0:01:35]} Nfd7 {[%emt 0:00:16]} 5. Bd3 {[%emt 0:00:13]} c5 {[%emt 0:00:07]} 6. c3 {[%emt 0:00:05]} Nc6 {[%emt 0:00:18]} 7. Ne2 {[%emt 0:00:11]} a5 {[%emt 0:00:41]} 8. O-O {[%emt 0:01:11]} cxd4 {[%emt 0:00:50]} 9. cxd4 {[%emt 0:00:31]} Nb4 {[%emt 0:00:41] C06: French Tarrasch: 3...Nf6 4 e5 Nfd7 5 Bd3 main lines.} 10. Bb1 {[%emt 0:00:19]} a4 {[%emt 0:02:03]} 11. a3 {[%emt 0:00:49]} Nc6 {[%emt 0:00:12] White is slightly better.} 12. Bd3 {[%emt 0:34:49]} Be7 {[%emt 0:12:35]} 13. Nf3 {[%emt 0:00:29]} Qa5 {[%emt 0:14:26]} (13... Nb6 $14) 14. Nc3 $16 {[%emt 0:01:22] [#]} Qa7 $146 {[%emt 0:13:26]} (14... Nb6 $16 15. Qe2 Bd7) ({Predecessor:} 14... Nb6 15. Qe2 Qa7 16. Bb5 Bd7 17. Be3 Na5 18. Bxd7+ Nxd7 19. Nb5 Qb6 20. Rac1 Nc4 21. Rxc4 dxc4 22. Qxc4 {0-1 (65) Gil Suarez,J-Lopez Grana,C (1764) Ourense 2008}) 15. Bc2 {[%emt 0:04:00]} (15. Nb5 $18 Qb6 16. Bg5) 15... Nb6 {[%emt 0:00:34]} 16. Nb5 {[%emt 0:00:19]} Qb8 {[%emt 0:00:23]} 17. Bg5 {[%emt 0:04:18] Hoping for Bxe7. White is more active.} Nc4 {[%emt 0:02:48]} 18. Bxe7 {[%emt 0:01:39]} ({And not} 18. Bxa4 Nxb2 19. Nd6+ Bxd6 20. Bxc6+ bxc6 $15) 18... Kxe7 {[%emt 0:05:49]} 19. Rb1 {[%emt 0:00:30]} (19. Bxa4 $2 Nxb2 20. Qc1 Nxa4 $17) 19... Bd7 {[%emt 0:12:32][%cal Rc6e5]} 20. Bxa4 {[%emt 0:00:33]} Nb6 {[%emt 0:11:27]} 21. b3 {[%emt 0:03:39]} Nxa4 {[%emt 0:09:04]} 22. bxa4 {[%emt 0:00:12]} Ra5 $2 {[%emt 0:04:45]} (22... h6 23. Nd6 Nd8) 23. Nd6 $18 {[%emt 0:01:22]} Qa8 {[%emt 0:00:00]} (23... Nd8 24. Qd2 Rxa4 25. Qg5+ Kf8) 24. Rxb7 {[%emt 0:06:04] [#] Ng5 is the strong threat.} Rb8 {[%emt 0:00:00]} 25. Rxb8 {[%emt 0:00:39]} ({Not} 25. Rc7 Kd8 $18) 25... Qxb8 {[%emt 0:00:35]} 26. Qc2 {[%emt 0:02:45] Strongly threatening Rb1.} f5 {[%emt 0:00:14]} 27. Rb1 {[%emt 0:00:00][%cal Bf1b1,Bb1b7,Bb7g7][%mdl 32]} Qa8 {[%emt 0:00:37]} 28. Rb7 {[%emt 0:00:00] [#] Threatening mate with Qxc6.} Qa6 {[%emt 0:00:11]} 29. h3 {[%emt 0:01:33]} h6 {[%emt 0:00:34]} 30. Nh4 {[%emt 0:01:17][%cal Bf3h4,Bh4g6,Bg6f8][%mdl 32]} Kd8 {[%emt 0:00:22]} 31. Ng6 {[%emt 0:00:59]} Rxa4 {[%emt 0:01:29]} 32. Nf8 {[%emt 0:02:06][%csl Gf8][%cal Rb7d7] Pair of Knights!} Bc8 {[%emt 0:00:04]} 33. Rxg7 {[%emt 0:00:26] Qc5 would kill now.} Rxd4 {[%emt 0:01:07]} 34. Qc5 {[%emt 0:01:10] Weighted Error Value: White=0.17 (very precise) /Black=0.54} 1-0

[Event "34th Pula Open 2022"]
[Site "Pula"]
[Date "2022.06.20"]
[Round "4.2"]
[White "Popovic, Milan S"]
[Black "Starcevic, Ante Leon"]
[Result "1-0"]
[ECO "B06"]
[WhiteElo "2383"]
[BlackElo "2227"]
[Annotator "TA"]
[PlyCount "159"]
[EventDate "2022.06.18"]
[EventType "swiss"]
[EventCountry "CRO"]
[SourceTitle "playchess.com"]
[Source "ChessBase"]
[SourceQuality "1"]
[TimeControl "5400+30"]

{[%evp 11,159,9,25,15,23,19,18,6,14,9,30,21,23,9,26,10,27,33,68,71,77,77,313,313,308,306,342,258,418,134,554,335,311,315,510,209,203,162,159,146,210,210,210,208,214,186,183,184,202,202,205,205,209,209,238,238,238,238,223,199,265,255,241,228,327,312,325,290,309,264,258,248,289,158,229,229,405,398,383,222,222,214,222,203,410,369,369,369,385,362,362,362,362,357,362,0,342,0,362,333,335,328,277,0,291,320,290,277,277,262,236,227,229,215,216,209,424,423,2446,1971,2795,1143,3265,2955,1732,1405,1106,978,786,763,743,722,618,483,483,462,2435,2066,3605,2795,1737,1655,4551,4252,2743,1692,1577,1517,880,473]} 1. e4 {[%emt 0:00:03]} c5 {[%emt 0:01:10]} 2. Nf3 {[%emt 0:00:06]} g6 {[%emt 0:00:25]} 3. c3 {[%emt 0:00:28]} d5 {[%emt 0:00:13]} 4. exd5 {[%emt 0:02:19]} Qxd5 {[%emt 0:01:20]} 5. d4 {[%emt 0:00:05]} Bg7 {[%emt 0:04:31]} 6. Na3 {[%emt 0:02:25]} cxd4 {[%emt 0:00:28]} 7. Nb5 {[%emt 0:00:37] B06: Modern Defence.} Na6 {[%emt 0:06:28] Prevents Nc7+.} 8. Nbxd4 {[%emt 0:01:00] Active counter play!} Nf6 {[%emt 0:02:37]} 9. Bb5+ {[%emt 0:00:16] The position is equal.} Bd7 {[%emt 0:02:46]} 10. Bxa6 {[%emt 0:00:08]} bxa6 {[%emt 0:00:28]} 11. O-O {[%emt 0:00:05]} O-O {[%emt 0:03:35]} 12. Re1 {[%emt 0:01:21]} e6 {[%emt 0:05:54]} 13. Ne5 {[%emt 0:24:39] [#]} Be8 $146 {[%emt 0:07:39]} ({Predecessor:} 13... Rfd8 14. h3 Be8 15. Qe2 Qb7 16. Bg5 h6 17. Bf4 Rac8 18. Rad1 a5 19. Rd2 a4 {½-½ (26) Feuerstack,A (2459)-Zwirs,N (2443) Amsterdam 2020}) 14. c4 {[%emt 0:27:46]} Qc5 {[%emt 0:23:10]} 15. Ndf3 $1 {[%emt 0:13:17] Pair of Knights!} a5 {[%emt 0:03:00]} 16. b3 {[%emt 0:08:13]} Nd7 $2 {[%emt 0:07:57]} 17. Nxd7 $18 {[%emt 0:01:27]} Bxd7 {[%emt 0:00:07] [#]} 18. Qxd7 $1 {[%emt 0:02:54]} Rfd8 {[%emt 0:01:37]} (18... Bxa1 19. Be3) 19. Be3 {[%emt 0:00:00]} Qa3 $2 {[%emt 0:03:01]} (19... Rxd7 20. Bxc5 Bxa1) 20. Qc6 $2 {[%emt 0:00:12]} Rac8 $2 {[%emt 0:01:07][%mdl 8192]} (20... Bxa1 $16 {is tougher.} 21. Rxa1 Qxa2 22. Qe8+ Kg7) 21. Qe4 {[%emt 0:00:09]} Bxa1 {[%emt 0:00:59]} 22. Rxa1 {[%emt 0:00:14]} Qxa2 $2 {[%emt 0:00:35]} (22... a4 23. Qe5 Qd6) 23. Bd4 {[%emt 0:02:09]} (23. Qe5 $142 Qe2 24. h3 (24. Qxa5 Rd1+ 25. Rxd1 Qxd1+ 26. Ne1 Qxb3 $16) (24. Bxa7 Qxe5 25. Nxe5 f6 $16) 24... Rd1+ 25. Kh2 Rxa1 26. Qf6 Rh1+ 27. Kg3 Qxe3 28. fxe3) 23... Qxb3 {[%emt 0:01:11]} 24. Qe5 {[%emt 0:00:00][%csl Gd4][%cal Re5g7]} Rxd4 {[%emt 0:03:15]} 25. Qxd4 {[%emt 0:00:00]} Rxc4 {[%emt 0:00:35]} (25... Qxc4 $16 26. Qd2 Rc5) 26. Qd8+ {[%emt 0:01:07]} ({Don't take} 26. Qxa7 Qc3 27. Rd1 Rc7 28. Qa8+ Rc8) 26... Kg7 {[%emt 0:00:12]} 27. Qxa5 {[%emt 0:00:15]} Qb2 {[%emt 0:02:24]} 28. Qe5+ {[%emt 0:01:44]} Qxe5 {[%emt 0:00:05]} 29. Nxe5 {[%emt 0:00:01][%mdl 4096] Endgame KRN-KR} Rc7 {[%emt 0:00:20]} 30. Kf1 {[%emt 0:00:58]} Kf6 {[%emt 0:00:34]} 31. Ra5 {[%emt 0:01:32]} g5 {[%emt 0:02:30]} 32. Nf3 {[%emt 0:02:02]} g4 {[%emt 0:01:08]} 33. Ne5 {[%emt 0:00:00]} h5 {[%emt 0:00:20]} 34. Nd3 {[%emt 0:00:00]} h4 {[%emt 0:01:07]} 35. Rh5 {[%emt 0:00:01]} Rc2 {[%emt 0:03:55]} (35... h3 $142 36. gxh3 Rc3) 36. Rxh4 {[%emt 0:00:43]} Kg5 {[%emt 0:00:04]} 37. Rh8 {[%emt 0:01:05]} Rd2 {[%emt 0:00:16]} (37... Kf5 {might work better.} 38. h4 gxh3 39. Rxh3 Kf6) 38. Rg8+ {[%emt 0:03:51]} Kf5 {[%emt 0:00:08]} 39. Ne1 {[%emt 0:02:42]} a5 {[%emt 0:00:48]} 40. h4 {[%emt 0:00:04]} gxh3 {[%emt 0:01:38]} 41. gxh3 {[%emt 0:00:06][%cal Bg2h3,Bh3h4,Bh4h5][%mdl 32]} a4 {[%emt 0:00:12]} 42. Rg3 {[%emt 0:00:59]} (42. Ra8 $18) 42... Ra2 {[%emt 0:00:55]} (42... Rb2 $16 {keeps fighting.} 43. Rf3+ Kg6) 43. h4 {[%emt 0:02:29]} ({Don't play} 43. Rf3+ Kg6 44. Rc3 Kg5) 43... a3 $2 {[%emt 0:00:05]} (43... Rb2 {was worth a try.} 44. h5 (44. Ra3 Rb4 $18) 44... Rb3) 44. h5 {[%emt 0:00:50] Hoping for h6.} Ra1 {[%emt 0:00:11]} 45. Ke2 {[%emt 0:00:57]} (45. Rf3+ $142 Kg5 46. Rxf7) 45... a2 {[%emt 0:00:29][%cal Oa1e1] aiming for ...Rxe1+!} 46. Ra3 $1 {[%emt 0:00:04]} Kg5 {[%emt 0:00:02]} 47. Ra5+ $1 {[%emt 0:00:22]} f5 $2 {[%emt 0:00:03]} (47... Kf6 48. Kd2 Kg7) 48. Nc2 {[%emt 0:00:15]} Rh1 {[%emt 0:02:05]} 49. Rxa2 {[%emt 0:00:04]} Rxh5 {[%emt 0:00:16]} 50. Ra5 {[%emt 0:00:59]} Rh4 {[%emt 0:01:44]} 51. Ne3 {[%emt 0:00:53]} Kf6 {[%emt 0:02:10]} 52. Ra6 {[%emt 0:00:37]} Ke5 {[%emt 0:00:42]} 53. Ra5+ {[%emt 0:00:15]} Kf6 {[%emt 0:00:04]} 54. Ra6 {[%emt 0:00:03]} Ke5 $1 {[%emt 0:00:03]} 55. Kf3 {[%emt 0:00:04]} Rb4 {[%emt 0:00:30]} 56. Ra5+ {[%emt 0:00:12]} Kd6 {[%emt 0:00:35]} 57. Ra6+ {[%emt 0:01:52]} Ke5 {[%emt 0:00:11]} 58. Ng2 {[%emt 0:00:53]} Rb3+ {[%emt 0:00:48]} 59. Ke2 $1 {[%emt 0:01:01]} Rb2+ {[%emt 0:00:11]} 60. Kf1 $1 {[%emt 0:00:06]} Rb1+ {[%emt 0:01:10]} 61. Ne1 $1 {[%emt 0:00:11]} Kd5 {[%emt 0:00:54]} 62. Ke2 {[%emt 0:00:25] Strongly threatening Nd3.} Rb2+ {[%emt 0:01:41]} 63. Ke3 {[%emt 0:01:07]} Rb3+ $2 {[%emt 0:02:43]} (63... f4+ {was called for.} 64. Kf3 e5 65. Ra5+ Kd4 66. Ra4+ Kd5) 64. Nd3 {[%emt 0:00:48] White is clearly winning.} e5 {[%emt 0:00:02]} (64... Rc3 $142 65. f3 Rb3 66. Ra5+ Kd6) 65. Ra5+ {[%emt 0:00:27]} Kd6 {[%emt 0:00:15]} 66. Ke2 {[%emt 0:00:14]} e4 {[%emt 0:00:28]} 67. Nf4 {[%emt 0:00:18]} Rb2+ {[%emt 0:00:48] [#]} 68. Kf1 $1 {[%emt 0:00:30]} Rb1+ {[%emt 0:00:11]} 69. Kg2 {[%emt 0:00:24]} Rb2 {[%emt 0:00:04]} 70. Rd5+ {[%emt 0:01:14]} Kc6 {[%emt 0:00:29]} 71. Kf1 {[%emt 0:00:16]} Rb1+ {[%emt 0:01:11] [#]} 72. Ke2 $1 {[%emt 0:00:01]} Rb2+ {[%emt 0:00:05]} 73. Rd2 {[%emt 0:00:04]} Rb3 {[%emt 0:00:33]} (73... Rb1 $142 74. Ne6 Kb7) 74. Ne6 {[%emt 0:00:02] Threatening mate with Nd4+.} Rh3 {[%emt 0:01:44]} 75. Nd4+ {[%emt 0:00:03]} Kd5 {[%emt 0:00:06]} 76. Nxf5+ {[%emt 0:00:01]} Ke5 {[%emt 0:00:05]} 77. Ne3 {[%emt 0:00:16]} Rh1 {[%emt 0:00:24]} 78. Rd5+ {[%emt 0:00:08]} Ke6 {[%emt 0:00:05]} 79. Ra5 {[%emt 0:00:24]} Rb1 {[%emt 0:00:21]} 80. Nc4 {[%emt 0:00:23] Weighted Error Value: White=0.42/Black=0.38} 1-0